bitfinex/quotes_BTCUSD_20211001
["timestamp","ask_amount","ask_price","bid_price","bid_amount"]
[1633076288811,1.69531875,44799.0,44798.0,0.44097953]
[1633076289211,1.60414057,44799.0,44798.0,0.44097953]
[1633076289612,1.60414057,44799.0,44798.0,0.5166388]
[1633076289811,1.60414057,44799.0,44798.0,1.6996388]
[1633076290010,1.60414057,44799.0,44798.0,1.9396388]
[1633076290412,1.60414057,44799.0,44798.0,1.6996388]
[1633076290610,1.60414057,44799.0,44798.0,1.6666388]
[1633076290611,1.59014057,44799.0,44798.0,1.6666388]
[1633076290810,1.59014057,44799.0,44798.0,1.7066388]
[1633076291215,1.59014057,44799.0,44798.0,1.9566388]
[1633076292221,1.59014057,44799.0,44798.0,1.7066388]
[1633076292413,1.59014057,44799.0,44798.0,1.6666388]
[1633076292614,1.59014057,44799.0,44798.0,1.58420276]
[1633076292817,1.59014057,44799.0,44798.0,1.85595562]
[1633076293015,1.59014057,44799.0,44798.0,1.89795562]
[1633076293816,1.59014057,44799.0,44798.0,0.31495562]
[1633076294033,1.59014057,44799.0,44798.0,0.61495562]
[1633076294234,1.59014057,44799.0,44798.0,0.46495562]
[1633076294437,1.59014057,44799.0,44798.0,0.42295562]
[1633076294639,1.59014057,44799.0,44798.0,0.41982063]
[1633076294835,1.59014057,44799.0,44798.0,0.46182063]
[1633076295034,1.59014057,44799.0,44798.0,0.86182063]
[1633076296033,1.59014057,44799.0,44798.0,0.76182063]
[1633076296235,1.59014057,44799.0,44798.0,0.71982063]
[1633076297240,1.59014057,44799.0,44798.0,0.76282063]
[1633076297434,1.59014057,44799.0,44798.0,0.78242063]
[1633076298836,1.59014057,44799.0,44798.0,0.47855562]
[1633076299035,1.58816239,44799.0,44798.0,0.77855562]
[1633076299240,1.67726239,44799.0,44798.0,0.77855562]
[1633076299436,1.67726239,44799.0,44798.0,0.69255562]
[1633076299899,1.67726239,44799.0,44798.0,0.71032462]
[1633076300038,1.67726239,44799.0,44798.0,0.76032462]
[1633076300436,1.67726239,44799.0,44798.0,0.86032462]
[1633076300641,1.67726239,44799.0,44798.0,0.46032462]
[1633076301238,1.67726239,44799.0,44798.0,0.50332462]
[1633076301438,1.67726239,44799.0,44798.0,0.277094]
[1633076302039,1.67726239,44799.0,44798.0,0.24938461]
[1633076302240,1.67726239,44799.0,44798.0,0.227094]
[1633076302641,1.67726239,44799.0,44798.0,0.184094]
[1633076303246,1.67726239,44799.0,44798.0,0.254494]
[1633076303842,1.67726239,44799.0,44798.0,0.104494]
[1633076304643,1.67726239,44799.0,44798.0,0.064494]
[1633076305244,1.67726239,44799.0,44798.0,0.062794]
[1633076305443,1.69726239,44799.0,44798.0,0.137794]
[1633076305906,1.69726239,44799.0,44798.0,0.260094]
[1633076306844,1.67726239,44799.0,44798.0,0.235094]
[1633076307045,1.69526239,44799.0,44798.0,0.260094]
[1633076307647,1.69526239,44799.0,44798.0,0.065069]
[1633076307855,1.91824521,44799.0,44798.0,0.042769]
[1633076308047,2.1914476,44799.0,44798.0,0.042769]
[1633076308245,2.14501021,44799.0,44798.0,0.042769]
[1633076308645,2.43820398,44799.0,44798.0,0.042769]
[1633076308905,2.43820398,44799.0,44798.0,0.017769]
[1633076308906,2.19700398,44799.0,44798.0,0.017769]
[1633076309247,2.24000398,44799.0,44798.0,0.017769]
[1633076309447,2.01323898,44799.0,44798.0,0.017769]
[1633076309846,2.24000398,44799.0,44798.0,0.017769]
[1633076310047,2.02128232,44799.0,44798.0,0.017769]
[1633076310247,2.02075222,44799.0,44798.0,0.017769]
[1633076310845,1.97775222,44799.0,44798.0,0.017769]
[1633076311547,2.02275222,44799.0,44798.0,1.79946047]
[1633076311745,1.79598722,44799.0,44798.0,1.79946047]
[1633076312350,2.01918722,44799.0,44798.0,1.79946047]
[1633076312549,2.01918722,44799.0,44798.0,0.017769]
[1633076312747,2.24595222,44799.0,44798.0,0.017769]
[1633076312950,4.24595222,44799.0,44798.0,0.017769]
[1633076313149,4.06675222,44799.0,44798.0,0.017769]
[1633076313953,4.06728232,44799.0,44798.0,0.017769]
[1633076314349,4.06675222,44799.0,44798.0,0.017769]
[1633076314651,4.02175222,44799.0,44798.0,0.017769]
[1633076314910,3.97775222,44799.0,44798.0,0.017769]
[1633076315053,4.02128232,44799.0,44798.0,0.017769]
[1633076315250,4.02075222,44799.0,44798.0,0.017769]
[1633076315651,4.01877404,44799.0,44798.0,0.017769]
[1633076315851,3.97577404,44799.0,44798.0,0.017769]
[1633076316052,4.19897404,44799.0,44798.0,0.017769]
[1633076317052,3.97577404,44799.0,44798.0,0.017769]
[1633076317452,4.01877404,44799.0,44798.0,0.017769]
[1633076317655,3.94430193,44799.0,44798.0,0.017769]
[1633076317956,4.16750193,44799.0,44798.0,0.017769]
[1633076318753,4.26090413,44799.0,44798.0,0.017769]
[1633076319156,0.55,44797.0,44784.0,0.0223]
[1633076319357,0.00776526,44798.0,44784.0,0.0223]
[1633076320162,0.00776526,44798.0,44797.0,0.33486]
[1633076320460,0.00776526,44798.0,44797.0,0.50716]
[1633076320932,0.00901054,44798.0,44797.0,0.1723]
[1633076321063,0.45897554,44798.0,44797.0,0.0223]
[1633076321259,0.79392554,44798.0,44797.0,0.0223]
[1633076321459,0.82616937,44798.0,44791.0,0.0223]
[1633076321661,0.60296937,44798.0,44791.0,0.0223]
[1633076321859,0.095597,44796.0,44791.0,0.0223]
[1633076322060,0.00125795,44792.0,44791.0,0.0223]
[1633076323264,0.02925795,44792.0,44791.0,0.0223]
[1633076324867,0.25245795,44792.0,44781.0,1.0015]
[1633076325067,0.00128582,44785.0,44783.0,0.273262]
[1633076325263,0.00128582,44785.0,44784.0,0.045046]
[1633076325664,0.31604203,44789.0,44784.0,0.045046]
[1633076325865,0.00122248,44787.0,44785.0,0.10667205]
[1633076326065,0.00122248,44787.0,44785.0,0.15667205]
[1633076326270,0.30282298,44792.0,44785.0,0.15667205]
[1633076326464,0.03,44792.0,44785.0,0.15667205]
[1633076326933,0.03,44792.0,44788.0,0.334919]
[1633076327071,0.03,44792.0,44788.0,0.384919]
[1633076327266,0.46590311,44795.0,44788.0,0.384919]
[1633076327267,0.26811203,44794.0,44791.0,0.20221953]
[1633076327467,0.024,44792.0,44791.0,0.25221953]
[1633076327665,0.024,44792.0,44791.0,0.05]
[1633076327867,0.2232,44792.0,44788.0,0.22328494]
[1633076328068,0.83556273,44791.0,44781.0,0.334976]
[1633076328268,0.60879773,44791.0,44781.0,0.334976]
[1633076328469,0.0891,44786.0,44781.0,0.384976]
[1633076328672,0.23702838,44784.0,44782.0,0.045054]
[1633076328871,0.28275249,44783.0,44782.0,0.045054]
[1633076329072,0.16048086,44786.0,44781.0,0.01961902]
[1633076329073,0.0891,44786.0,44781.0,0.01961902]
[1633076329274,0.0891,44786.0,44785.0,1.66258333]
[1633076329468,0.0891,44786.0,44785.0,1.93349168]
[1633076329773,0.0891,44786.0,44785.0,2.49129168]
[1633076329968,0.0891,44786.0,44785.0,3.13129168]
[1633076330170,0.00776526,44798.0,44785.0,3.13129168]
[1633076330171,0.00776526,44798.0,44792.0,0.19858494]
[1633076330372,0.00776526,44798.0,44797.0,1.15909744]
[1633076330569,0.00776526,44798.0,44797.0,1.60754074]
[1633076330767,0.00776526,44798.0,44797.0,1.65754074]
[1633076330970,0.00776526,44798.0,44797.0,0.98139744]
[1633076331173,0.00776526,44798.0,44797.0,0.96346396]
[1633076331372,0.03776526,44798.0,44797.0,0.88846396]
[1633076331569,0.03776526,44798.0,44797.0,1.22326296]
[1633076332169,0.03776526,44798.0,44797.0,1.32326296]
[1633076332572,0.03776526,44798.0,44797.0,1.22326296]
[1633076332777,0.00776526,44798.0,44797.0,1.19826296]
[1633076333575,0.03478708,44798.0,44797.0,1.19826296]
[1633076333973,0.03478708,44798.0,44797.0,1.064899]
[1633076334370,0.03478708,44798.0,44797.0,1.049899]
[1633076334971,0.00578708,44798.0,44797.0,1.17296078]
[1633076335373,0.03578708,44798.0,44797.0,1.27296078]
[1633076335574,0.03578708,44798.0,44797.0,1.17296078]
[1633076335944,0.03578708,44798.0,44796.0,0.22319658]
[1633076335945,0.30211613,44798.0,44796.0,0.22319658]
[1633076336078,0.56866866,44797.0,44785.0,0.68461553]
[1633076336274,0.0005301,44796.0,44785.0,0.68461553]
[1633076336677,0.0005301,44796.0,44788.0,0.2232676]
[1633076336874,0.07337135,44789.0,44788.0,0.2232676]
[1633076337077,0.39826744,44789.0,44788.0,0.2232676]
[1633076337278,0.3952567,44789.0,44788.0,0.2232676]
[1633076337475,0.32188535,44789.0,44785.0,0.46136553]
[1633076337683,0.17709295,44787.0,44785.0,0.46136553]
[1633076337881,0.2950819,44786.0,44785.0,0.45136553]
[1633076338076,0.49714253,44786.0,44785.0,0.45136553]
[1633076339477,0.53314253,44786.0,44785.0,0.45136553]
[1633076339877,0.23934468,44786.0,44785.0,0.45136553]
[1633076340076,0.50424408,44786.0,44785.0,0.45136553]
[1633076340680,0.45824408,44786.0,44785.0,0.45136553]
[1633076340879,0.68272956,44786.0,44785.0,0.45136553]
[1633076341085,0.68272956,44786.0,44775.0,0.01]
[1633076341086,0.93751608,44785.0,44775.0,0.01]
[1633076341279,0.25009901,44776.0,44775.0,0.01]
[1633076341479,0.55555025,44776.0,44775.0,0.01]
[1633076341680,0.77229087,44776.0,44775.0,0.01]
[1633076341942,0.76904233,44776.0,44775.0,0.01]
[1633076342081,0.76904233,44776.0,44775.0,0.00900001]
[1633076342279,0.76904233,44776.0,44775.0,0.00400001]
[1633076342481,0.46359109,44776.0,44775.0,0.00400001]
[1633076342880,0.74066447,44776.0,44775.0,0.00400001]
[1633076343486,0.49959109,44776.0,44775.0,0.00400001]
[1633076343683,0.78050488,44776.0,44775.0,0.00400001]
[1633076343886,0.78582809,44776.0,44775.0,0.00400001]
[1633076345085,0.50297762,44776.0,44775.0,0.00400001]
[1633076345285,0.21796968,44776.0,44775.0,0.00400001]
[1633076345485,0.25496968,44776.0,44775.0,0.00400001]
[1633076345885,0.25374062,44776.0,44775.0,0.00400001]
[1633076346084,0.25374062,44776.0,44775.0,0.00417228]
[1633076346286,0.52380947,44776.0,44775.0,0.00417228]
[1633076346688,0.48680947,44776.0,44775.0,0.00417228]
[1633076346888,0.48808246,44776.0,44775.0,0.00417228]
[1633076347486,0.52408246,44776.0,44775.0,0.00417228]
[1633076348486,0.25401361,44776.0,44773.0,0.22293681]
[1633076348691,0.26924921,44775.0,44773.0,0.22293681]
[1633076349490,0.30524921,44775.0,44773.0,0.22293681]
[1633076349688,0.036,44775.0,44773.0,0.55797881]
[1633076350087,0.28387799,44774.0,44773.0,0.17293681]
[1633076351088,0.28189981,44774.0,44773.0,0.17293681]
[1633076351490,0.31189981,44774.0,44773.0,0.22293681]
[1633076352293,0.03,44774.0,44773.0,1.43931997]
[1633076352500,0.03,44774.0,44773.0,1.58563566]
[1633076352893,0.00121762,44785.0,44773.0,1.71800681]
[1633076353092,0.00121762,44785.0,44774.0,0.402405]
[1633076353291,0.24975546,44778.0,44776.0,0.09729709]
[1633076353492,0.24975546,44778.0,44777.0,0.045068]
[1633076354091,0.24975546,44778.0,44774.0,0.0223]
[1633076354092,0.24975546,44778.0,44774.0,0.1]
[1633076354293,0.00127253,44777.0,44773.0,0.077]
[1633076354494,0.00127253,44777.0,44773.0,0.027]
[1633076354696,0.00121393,44784.0,44774.0,0.045071]
[1633076354893,0.00121393,44784.0,44773.0,0.027]
[1633076355091,0.00121393,44784.0,44772.0,0.34627623]
[1633076355292,0.00121393,44784.0,44778.0,0.55832417]
[1633076355491,0.08693788,44782.0,44779.0,0.05]
[1633076355692,0.08693788,44782.0,44778.0,0.22333117]
[1633076355891,0.00122413,44780.0,44773.0,0.023]
[1633076356096,0.0005301,44781.0,44773.0,0.023]
[1633076356292,0.0005301,44782.0,44777.0,0.22336408]
[1633076356691,0.24429166,44779.0,44777.0,0.27336408]
[1633076357092,0.29112153,44779.0,44777.0,0.27336408]
[1633076357493,0.33265163,44779.0,44777.0,0.27336408]
[1633076358093,0.28529166,44779.0,44777.0,0.27336408]
[1633076358293,0.28529166,44779.0,44777.0,0.22336408]
[1633076358294,0.31956508,44778.0,44777.0,0.22336408]
[1633076358494,0.03870929,44778.0,44777.0,0.22336408]
[1633076359100,0.30921196,44778.0,44777.0,0.22336408]
[1633076359297,0.26547429,44778.0,44771.0,0.01792499]
[1633076359498,0.23483171,44776.0,44771.0,0.01792499]
[1633076359958,0.3245155,44776.0,44771.0,0.01792499]
[1633076360296,0.23483171,44776.0,44771.0,0.01792499]
[1633076360501,0.23285353,44776.0,44771.0,0.06792499]
[1633076361096,0.23285353,44776.0,44771.0,0.29131785]
[1633076361298,0.33214891,44776.0,44771.0,0.29131785]
[1633076361497,0.37214891,44776.0,44771.0,0.29131785]
[1633076362964,0.33214891,44776.0,44771.0,0.29131785]
[1633076363102,0.23285353,44776.0,44771.0,0.29131785]
[1633076363505,0.60796253,44776.0,44771.0,0.29131785]
[1633076363702,0.0005301,44775.0,44771.0,0.29131785]
[1633076363902,0.60796253,44776.0,44771.0,0.29131785]
[1633076364102,0.69228608,44776.0,44771.0,0.29131785]
[1633076364504,0.39048084,44776.0,44771.0,0.29131785]
[1633076364703,0.18213463,44772.0,44771.0,0.29131785]
[1633076365301,0.29918252,44775.0,44771.0,0.29131785]
[1633076365505,0.032,44772.0,44771.0,0.29131785]
[1633076366304,0.032,44772.0,44771.0,0.24131785]
[1633076366903,0.29918252,44775.0,44771.0,0.24131785]
[1633076367705,0.34318252,44775.0,44771.0,0.24131785]
[1633076367903,0.044,44775.0,44771.0,0.24131785]
[1633076368306,0.094,44775.0,44771.0,0.24131785]
[1633076368503,0.094,44775.0,44771.0,0.57638185]
[1633076368702,0.094,44775.0,44771.0,0.46324725]
[1633076368982,0.09202182,44775.0,44771.0,0.46324725]
[1633076369120,0.05,44775.0,44773.0,0.00120684]
[1633076369316,0.28402152,44775.0,44774.0,0.13811751]
[1633076369508,0.57478363,44775.0,44774.0,0.045073]
[1633076369711,0.57478363,44775.0,44770.0,0.00396085]
[1633076369712,1.05274863,44775.0,44770.0,0.00396085]
[1633076369907,0.00124381,44773.0,44770.0,0.00396085]
[1633076370105,0.226765,44772.0,44770.0,0.00396085]
[1633076370307,0.29113278,44771.0,44770.0,0.00396085]
[1633076370506,0.51842788,44771.0,44770.0,0.00396085]
[1633076370908,0.84289423,44771.0,44770.0,0.00396085]
[1633076371107,1.86249423,44771.0,44770.0,0.00396085]
[1633076371311,1.86249423,44771.0,44770.0,6.085e-05]
[1633076371509,1.8987402,44771.0,44770.0,6.085e-05]
[1633076371706,0.8987402,44771.0,44770.0,6.085e-05]
[1633076371972,1.276765,44770.0,44769.0,0.00016085]
[1633076372110,1.326765,44769.0,44768.0,0.00127831]
[1633076372314,0.626765,44767.0,44763.0,0.0016]
[1633076372510,0.72796852,44766.0,44763.0,0.0016]
[1633076372709,0.62849862,44766.0,44763.0,0.0016]
[1633076373316,0.85169862,44766.0,44763.0,0.0016]
[1633076373507,0.99469862,44766.0,44763.0,0.0016]
[1633076373709,0.77149862,44766.0,44763.0,0.0016]
[1633076373917,0.25,44765.0,44762.0,0.003816]
[1633076374112,0.226765,44764.0,44762.0,0.003816]
[1633076374310,0.3505301,44763.0,44762.0,0.003816]
[1633076374513,0.5772951,44763.0,44762.0,0.003816]
[1633076374710,0.57854209,44763.0,44762.0,0.003816]
[1633076374989,0.90174209,44763.0,44762.0,0.003816]
[1633076375114,1.3029808,44763.0,44762.0,0.003816]
[1633076375312,1.2029808,44763.0,44762.0,0.003816]
[1633076375515,0.226765,44761.0,44753.0,0.0016]
[1633076375711,0.85,44762.0,44753.0,0.0016]
[1633076375712,1.41133366,44760.0,44753.0,0.0016]
[1633076375910,1.41186376,44760.0,44753.0,0.0016]
[1633076376110,0.56186376,44760.0,44753.0,0.07667106]
[1633076376316,0.226765,44760.0,44753.0,0.07667106]
[1633076376510,0.042,44763.0,44754.0,0.35865639]
[1633076376711,0.042,44763.0,44754.0,0.00323546]
[1633076376910,0.042,44763.0,44760.0,0.00123564]
[1633076377110,0.226765,44762.0,44760.0,0.07926254]
[1633076377316,0.226765,44762.0,44758.0,0.336347]
[1633076377512,0.0012588,44763.0,44758.0,0.0012]
[1633076377712,0.2722951,44762.0,44758.0,0.0012]
[1633076378114,0.0005301,44761.0,44758.0,0.0012]
[1633076378313,0.226765,44760.0,44758.0,0.0012]
[1633076378712,0.2272951,44760.0,44758.0,0.0012]
[1633076378912,0.22531692,44760.0,44758.0,0.0012]
[1633076379111,0.0012588,44763.0,44758.0,0.0012]
[1633076379315,0.226819,44762.0,44758.0,0.0012]
[1633076379513,0.226819,44762.0,44759.0,0.07388791]
[1633076379712,0.043,44763.0,44760.0,0.320147]
[1633076379913,0.043,44763.0,44761.0,0.1]
[1633076380114,0.043,44763.0,44759.0,0.07388791]
[1633076380312,0.043,44763.0,44759.0,0.0012]
[1633076381115,0.226819,44762.0,44759.0,0.0012]
[1633076381716,0.268819,44762.0,44759.0,0.0012]
[1633076381915,0.53664588,44762.0,44759.0,0.0012]
[1633076382116,0.53664588,44762.0,44759.0,0.00064001]
[1633076382318,0.53633227,44762.0,44759.0,0.00064001]
[1633076382518,0.268819,44762.0,44759.0,0.00064001]
[1633076382719,0.042,44762.0,44759.0,0.00187269]
[1633076383319,0.226819,44761.0,44759.0,0.00064001]
[1633076383518,0.2273491,44761.0,44759.0,0.00064001]
[1633076383717,0.226819,44761.0,44759.0,0.00064001]
[1633076383979,0.046,44762.0,44759.0,0.00064001]
[1633076384119,0.226819,44761.0,44759.0,0.00064001]
[1633076385321,1.34346897,44760.0,44759.0,0.00064001]
[1633076385520,1.34761807,44760.0,44759.0,0.00064001]
[1633076385921,1.07859431,44760.0,44759.0,0.00064001]
[1633076386318,1.34896111,44760.0,44759.0,0.00064001]
[1633076387321,1.57216111,44760.0,44759.0,0.00064001]
[1633076387522,1.30179431,44760.0,44759.0,0.00064001]
[1633076387723,1.11459431,44760.0,44759.0,0.00064001]
[1633076388123,0.26459431,44760.0,44759.0,0.00064001]
[1633076388923,0.71459431,44760.0,44759.0,0.00064001]
[1633076389124,0.67859431,44760.0,44759.0,0.00064001]
[1633076389722,0.71661613,44760.0,44759.0,0.00064001]
[1633076389985,0.26661613,44760.0,44759.0,0.00064001]
[1633076390525,0.26608603,44760.0,44759.0,0.00064001]
[1633076391127,0.22608603,44760.0,44759.0,0.00064001]
[1633076391729,0.26008603,44760.0,44759.0,0.00064001]
[1633076392127,0.034,44760.0,44759.0,0.00064001]
[1633076393127,0.32335246,44776.0,44759.0,0.2677816]
[1633076393128,0.97254527,44773.0,44759.0,0.2677816]
[1633076393331,0.97254527,44773.0,44766.0,0.00126802]
[1633076393332,0.97129888,44773.0,44766.0,0.00126802]
[1633076393527,0.5749,44775.0,44766.0,0.00126802]
[1633076393728,0.0999,44776.0,44767.0,0.0196]
[1633076394127,0.0999,44776.0,44769.0,0.20855911]
[1633076394330,0.23387698,44771.0,44770.0,0.34318998]
[1633076394528,0.23387698,44771.0,44770.0,0.39318998]
[1633076394926,0.23387698,44771.0,44770.0,0.0696]
[1633076395127,0.23387698,44771.0,44770.0,0.0196]
[1633076395728,0.27387698,44771.0,44770.0,0.0196]
[1633076396132,0.09,44771.0,44770.0,0.02088647]
[1633076396333,0.09,44771.0,44770.0,0.06867847]
[1633076396536,0.09,44771.0,44770.0,0.4499894]
[1633076396831,0.09,44771.0,44770.0,1.1499894]
[1633076397029,0.09,44771.0,44770.0,1.44798885]
[1633076397234,0.05,44771.0,44770.0,0.86335992]
[1633076397438,0.05,44771.0,44770.0,0.66536047]
[1633076397829,0.096,44771.0,44770.0,0.66536047]
[1633076399233,0.096,44771.0,44770.0,0.21867847]
[1633076399434,0.096,44771.0,44770.0,0.217392]
[1633076399633,0.096,44771.0,44770.0,0.21863239]
[1633076399834,0.118,44771.0,44770.0,0.22663239]
[1633076400233,0.07002182,44771.0,44770.0,0.22663239]
[1633076400632,0.07002182,44771.0,44770.0,0.56165039]
[1633076400837,1.34756376,44771.0,44770.0,0.008]
[1633076401037,0.29737092,44771.0,44770.0,0.008]
[1633076401236,0.29737092,44771.0,44769.0,0.24330187]
[1633076401237,0.04802182,44771.0,44769.0,0.24330187]
[1633076401436,0.04802182,44771.0,44770.0,0.047784]
[1633076401637,0.04802182,44771.0,44766.0,0.22333]
[1633076401833,0.09302182,44771.0,44766.0,0.22333]
[1633076402033,0.09302182,44771.0,44767.0,0.047788]
[1633076402237,0.09302182,44771.0,44766.0,0.22333]
[1633076402433,0.18377301,44767.0,44766.0,0.27333]
[1633076402633,0.18377301,44767.0,44766.0,0.05]
[1633076402835,0.18377301,44767.0,44760.0,0.44809025]
[1633076403633,0.18377301,44767.0,44761.0,0.35084105]
[1633076403835,0.22777301,44767.0,44762.0,0.33512]
[1633076404036,0.22777301,44767.0,44763.0,0.047797]
[1633076404636,0.22777301,44767.0,44761.0,0.07721752]
[1633076404833,0.22777301,44767.0,44762.0,0.047798]
[1633076405234,0.18377301,44767.0,44762.0,0.047798]
[1633076405437,0.18377301,44767.0,44760.0,0.223412]
[1633076405634,0.18377301,44767.0,44761.0,0.0478]
[1633076405834,0.22577301,44767.0,44761.0,0.0478]
[1633076406236,0.042,44767.0,44763.0,0.11312856]
[1633076406436,0.042,44767.0,44763.0,0.28964247]
[1633076406639,0.042,44767.0,44764.0,0.047796]
[1633076407036,0.042,44767.0,44764.0,0.382905]
[1633076407236,0.19456954,44765.0,44764.0,0.382905]
[1633076407435,0.19456954,44765.0,44764.0,0.047796]
[1633076407836,0.23756954,44765.0,44764.0,0.047796]
[1633076408034,0.043,44765.0,44764.0,0.047796]
[1633076408432,0.043,44765.0,44764.0,0.147796]
[1633076408838,0.043,44765.0,44764.0,0.54903152]
[1633076409036,0.043,44765.0,44764.0,0.30903152]
[1633076409434,0.23954104,44771.0,44764.0,0.3094527]
[1633076409837,0.04802182,44771.0,44768.0,0.24259282]
[1633076410238,0.04802182,44771.0,44770.0,0.00127013]
[1633076410443,0.04802182,44771.0,44770.0,0.06865613]
[1633076410838,0.04802182,44771.0,44770.0,0.27771737]
[1633076411036,0.09222351,44771.0,44770.0,0.27771737]
[1633076411239,0.09222351,44771.0,44770.0,0.06865613]
[1633076411638,0.09222351,44771.0,44770.0,0.067386]
[1633076411839,0.09222351,44771.0,44770.0,0.167386]
[1633076412038,0.08202182,44771.0,44770.0,0.217386]
[1633076412236,0.08202182,44771.0,44770.0,0.39274859]
[1633076412636,0.08202182,44771.0,44770.0,0.217386]
[1633076412837,0.1160136,44771.0,44770.0,0.217386]
[1633076413038,0.1160136,44771.0,44770.0,0.167386]
[1633076413641,0.04802182,44771.0,44770.0,1.06867054]
[1633076414105,0.09002182,44771.0,44770.0,1.06867054]
[1633076414507,0.09002182,44771.0,44770.0,1.39904447]
[1633076414705,0.09002182,44771.0,44770.0,1.06909172]
[1633076415307,0.04936283,44780.0,44771.0,1.2]
[1633076415514,0.28678907,44790.0,44771.0,1.2]
[1633076415515,0.93857853,44791.0,44779.0,0.00127632]
[1633076415711,0.7408,44795.0,44788.0,0.00124541]
[1633076415909,0.04826703,44794.0,44789.0,0.01586377]
[1633076416210,0.08750298,44796.0,44791.0,0.334899]
[1633076416408,0.17709915,44794.0,44792.0,0.47112283]
[1633076416607,0.00578708,44798.0,44793.0,0.34555146]
[1633076416806,0.00578708,44798.0,44794.0,0.0196]
[1633076417015,0.00578708,44798.0,44793.0,0.30756917]
[1633076417206,0.00578708,44798.0,44794.0,0.0196]
[1633076417608,0.18489983,44797.0,44794.0,0.0196]
[1633076418006,0.18489983,44797.0,44794.0,0.0296]
[1633076418406,0.18489983,44797.0,44794.0,0.364469]
[1633076419409,0.18489983,44797.0,44794.0,0.354469]
[1633076419809,0.18489983,44797.0,44794.0,0.35386297]
[1633076420007,0.18489983,44797.0,44796.0,0.00042118]
[1633076420209,0.19289983,44797.0,44796.0,0.02002118]
[1633076420610,0.41971883,44797.0,44796.0,0.02002118]
[1633076421010,0.64415664,44797.0,44796.0,0.02002118]
[1633076421212,0.55081607,44797.0,44796.0,0.00042118]
[1633076421413,0.2433646,44797.0,44796.0,0.00042118]
[1633076421812,0.2353646,44797.0,44796.0,0.00042118]
[1633076422011,0.28112679,44797.0,44796.0,0.00042118]
[1633076422212,0.28112679,44797.0,44794.0,0.04579134]
[1633076422412,0.23189983,44797.0,44794.0,0.04579134]
[1633076422611,0.226819,44796.0,44794.0,0.04579134]
[1633076423020,0.0005301,44795.0,44794.0,0.04579134]
[1633076423218,0.2273491,44795.0,44794.0,0.04579134]
[1633076423417,0.226819,44795.0,44794.0,0.04579134]
[1633076423619,0.2842691,44795.0,44794.0,0.04579134]
[1633076423819,0.05692,44795.0,44794.0,0.04579134]
[1633076424019,0.10292,44795.0,44794.0,0.04579134]
[1633076425621,0.05692,44795.0,44794.0,0.04579134]
[1633076426220,0.09392,44795.0,44794.0,0.04579134]
[1633076427620,0.04692,44795.0,44794.0,0.04579134]
[1633076428223,0.05092,44795.0,44794.0,0.04879134]
[1633076428622,0.004,44795.0,44794.0,0.04879134]
[1633076428822,0.05092,44795.0,44794.0,0.04879134]
[1633076429021,0.277739,44795.0,44794.0,0.04879134]
[1633076429421,0.273739,44795.0,44794.0,0.04579134]
[1633076429623,0.04692,44795.0,44794.0,0.04579134]
[1633076430025,0.04692,44795.0,44794.0,0.41930554]
[1633076430223,0.04692,44795.0,44794.0,0.44730554]
[1633076430422,0.04692,44795.0,44794.0,0.09339134]
[1633076430622,0.2565519,44795.0,44794.0,0.09339134]
[1633076431226,0.069316,44795.0,44794.0,0.34187376]
[1633076431426,0.069316,44795.0,44794.0,0.44187376]
[1633076431625,0.069316,44795.0,44794.0,0.41387376]
[1633076432025,0.069316,44795.0,44794.0,0.16539134]
[1633076432228,0.069316,44795.0,44794.0,0.19990734]
[1633076432432,0.069316,44795.0,44794.0,0.19539134]
[1633076432632,0.069316,44795.0,44794.0,0.09539134]
[1633076433630,0.069316,44795.0,44794.0,0.06539134]
[1633076433831,0.069316,44795.0,44794.0,0.06663583]
[1633076434236,0.00578708,44798.0,44795.0,0.7]
[1633076434432,0.06270708,44798.0,44797.0,0.60120607]
[1633076434632,0.06270708,44798.0,44797.0,0.25648309]
[1633076434833,0.06270708,44798.0,44797.0,0.55437806]
[1633076435342,7.16841206,44799.0,44798.0,0.87729292]
[1633076435343,6.94518004,44799.0,44798.0,0.87729292]
[1633076435534,6.05248518,44799.0,44798.0,1.30817365]
[1633076436132,5.15975064,44799.0,44798.0,1.30817365]
[1633076436334,5.15975064,44799.0,44798.0,0.75817365]
[1633076436533,5.16775064,44799.0,44798.0,0.78917365]
[1633076437736,5.16775064,44799.0,44798.0,0.15188073]
[1633076437999,5.15975064,44799.0,44798.0,0.12088073]
[1633076438336,5.17075064,44799.0,44798.0,0.15188073]
[1633076439136,5.17075064,44799.0,44798.0,0.48666673]
[1633076439735,5.15975064,44799.0,44798.0,0.57658105]
[1633076439936,5.15975064,44799.0,44798.0,0.45566673]
[1633076440337,5.17075064,44799.0,44798.0,0.83666673]
[1633076440539,5.17075064,44799.0,44798.0,0.48666673]
[1633076441337,5.17075064,44799.0,44798.0,0.5799336]
[1633076441738,5.15975064,44799.0,44798.0,0.5489336]
[1633076442335,5.17075064,44799.0,44798.0,0.5799336]
[1633076443338,5.17075064,44799.0,44798.0,0.48666673]
[1633076443744,5.15975064,44799.0,44798.0,0.45566673]
[1633076444342,5.15975064,44799.0,44798.0,0.48666673]
[1633076444343,5.17075064,44799.0,44798.0,0.48666673]
[1633076444741,4.72435364,44799.0,44798.0,0.48666673]
[1633076445141,4.72435364,44799.0,44798.0,0.66936379]
[1633076445543,4.72435364,44799.0,44798.0,0.63836379]
[1633076445743,4.71335364,44799.0,44798.0,0.63836379]
[1633076446143,4.71335364,44799.0,44798.0,0.45566673]
[1633076446344,4.73735364,44799.0,44798.0,0.03]
[1633076447143,4.73735364,44799.0,44798.0,0.03124408]
[1633076447343,4.73735364,44799.0,44798.0,0.05084408]
[1633076447745,4.71335364,44799.0,44798.0,0.02084408]
[1633076448350,4.72435364,44799.0,44798.0,0.48763008]
[1633076449748,4.71335364,44799.0,44798.0,0.45563008]
[1633076450348,4.72435364,44799.0,44798.0,0.48763008]
[1633076450552,4.72435364,44799.0,44798.0,0.82115582]
[1633076450748,4.72435364,44799.0,44798.0,2.01434903]
[1633076450955,4.72435364,44799.0,44798.0,1.71835908]
[1633076451349,4.72435364,44799.0,44798.0,0.53535908]
[1633076451748,4.71335364,44799.0,44798.0,0.45563008]
[1633076451950,4.71335364,44799.0,44798.0,0.50335608]
[1633076452552,4.71335364,44799.0,44798.0,0.53735608]
[1633076452950,4.71335364,44799.0,44798.0,0.48963008]
[1633076453150,4.71335364,44799.0,44798.0,0.53735608]
[1633076453949,4.71335364,44799.0,44798.0,0.50335608]
[1633076454149,4.71335364,44799.0,44798.0,2.04462074]
[1633076454150,3.11753881,44799.0,44798.0,2.04462074]
[1633076454355,0.0002,44804.0,44802.0,0.04772]
[1633076454556,0.0002,44804.0,44803.0,0.66726965]